[Event "44th Chess Olympiad Open 2022"]
[Site "Chennai"]
[Date "2022.08.09"]
[Round "11.20"]
[White "Ragger, Markus"]
[Black "Dardha, Daniel"]
[Result "1/2-1/2"]
[ECO "C66"]
[WhiteElo "2647"]
[BlackElo "2575"]
[Annotator "TA"]
[PlyCount "92"]
[EventDate "2022.07.29"]
[EventType "team-tourn"]
[EventCountry "IND"]
[SourceTitle "playchess.com"]
[Source "ChessBase"]
[SourceQuality "1"]
[WhiteTeam "Austria"]
[BlackTeam "Belgium"]
[WhiteTeamCountry "AUT"]
[BlackTeamCountry "BEL"]
[TimeControl "40/5400+30:1800+30"]

{[%evp 9,92,29,36,38,23,28,37,43,44,33,35,19,31,12,26,32,37,35,33,33,36,36,59,0,0,0,0,0,0,-6,-5,0,0,-8,28,0,0,0,0,0,14,13,35,23,30,12,34,40,35,42,35,49,49,6,6,0,0,0,0,0,0,0,0,-8,-9,-16,-15,-16,-11,-12,-11,-20,-12,-20,-8,-10,0,0,0,0,0,0,0,0,0]} 1. e4 {[%emt 0:00:01]} e5 {[%emt 0:00:18]} 2. Nf3 {[%emt 0:00:01]} Nc6 {[%emt 0:00:14]} 3. Bb5 {[%emt 0:00:04]} Nf6 {[%emt 0:00:50]} 4. d3 {[%emt 0:00:02][%cal Bd2d3,Bd3d4][%mdl 32]} d6 {[%emt 0:02:07]} 5. O-O {[%emt 0:00:16]} a6 {[%emt 0:00:36]} 6. Bxc6+ {[%emt 0:00:03] C66: Ruy Lopez: Steinitz Defence.} bxc6 {[%emt 0:00:07]} 7. Re1 {[%emt 0:00:03]} a5 {[%emt 0:00:53] 7...Nd7 is the recent fashion.} 8. d4 {[%emt 0:12:07] White is slightly better.} Nd7 {[%emt 0:00:10]} 9. c4 {[%emt 0:02:59]} Be7 {[%emt 0:02:01]} 10. Nc3 {[%emt 0:02:39]} O-O {[%emt 0:02:01] [#]} 11. Be3 $146 {[%emt 0:02:39]} ({Predecessor:} 11. dxe5 dxe5 12. Be3 Bb4 13. Qc2 Qe7 14. Red1 Re8 15. Na4 Nc5 16. a3 Nxa4 17. axb4 {0-1 (94) Sjugirov,S (2696)-Oparin,G (2683) Chess.com INT 2022}) 11... Re8 {[%emt 0:10:23]} 12. dxe5 {[%emt 0:14:37]} dxe5 {[%emt 0:01:13]} 13. Qa4 {[%emt 0:02:59]} Bb7 {[%emt 0:06:15]} 14. Red1 {[%emt 0:04:25]} Qc8 {[%emt 0:00:23]} 15. Qc2 {[%emt 0:01:15]} f6 {[%emt 0:04:49]} 16. Nd2 {[%emt 0:13:31]} (16. Ne1 $14) 16... c5 $1 $11 {[%emt 0:05:43][%cal Bc6c5,Bc5c4,Bc4b3][%mdl 32]} 17. Na4 {[%emt 0:11:59]} Bc6 $1 {[%emt 0:05:31]} 18. Nb1 {[%emt 0:00:50]} Qa6 {[%emt 0:04:30]} 19. Nbc3 {[%emt 0:00:57]} Qxc4 {[%emt 0:07:23]} 20. b3 {[%emt 0:00:09]} Qf7 {[%emt 0:02:50]} 21. Rac1 {[%emt 0:07:48]} c4 {[%emt 0:03:16]} 22. Nd5 {[%emt 0:07:10]} Bxd5 {[%emt 0:08:28]} 23. Rxd5 {[%emt 0:00:10]} cxb3 $1 {[%emt 0:03:26]} 24. Qxc7 {[%emt 0:01:37]} Nf8 {[%emt 0:01:11] Strongly threatening ...Rac8.} 25. axb3 {[%emt 0:00:30]} Rab8 {[%emt 0:01:39]} 26. Nb6 {[%emt 0:01:02][%cal Ba4b6,Bb6c4,Bc4a5][%mdl 32]} Ne6 {[%emt 0:03:32]} 27. Qc4 {[%emt 0:02:36]} Nd4 {[%emt 0:04:08]} (27... Nf4 $5 {[%cal Rf4d5]}) 28. Bxd4 {[%emt 0:01:13]} exd4 {[%emt 0:01:45]} 29. Qxd4 {[%emt 0:00:01]} Qe6 {[%emt 0:02:32] Prevents Rc6.} 30. Nc4 {[%emt 0:05:01]} Rxb3 {[%emt 0:00:41]} 31. Nxa5 {[%emt 0:00:28]} Rb4 {[%emt 0:01:24] The position is equal.} 32. Qd3 {[%emt 0:00:26][%cal Oe4e5]} Rxe4 {[%emt 0:00:46] [#] aiming for ...Re1+.} 33. g3 {[%emt 0:00:02]} Bb4 {[%emt 0:02:58] And now ...Bxa5 would win.} 34. Rd8 {[%emt 0:03:16]} Rxd8 {[%emt 0:03:06]} 35. Qxd8+ {[%emt 0:00:00]} Kf7 {[%emt 0:00:25] Threatens to win with ...Re1+.} 36. Rf1 {[%emt 0:02:46]} h5 {[%emt 0:02:03][%cal Bh7h5,Bh5h4][%mdl 32]} 37. Qd1 {[%emt 0:00:50]} h4 {[%emt 0:01:06]} 38. Nb3 {[%emt 0:00:23]} h3 {[%emt 0:02:51]} 39. Nc5 {[%emt 0:00:32]} Bxc5 {[%emt 0:00:14]} 40. Qh5+ {[%emt 0:00:01]} Kg8 {[%emt 0:00:21][%cal Oc5f2] [#] ( -> ...Bxf2+!)} 41. Qxc5 {[%emt 0:30:01][%mdl 4096] Endgame KQR-KQR} Re1 {[%emt 0:31:25]} 42. Qh5 {[%emt 0:00:00]} Rxf1+ {[%emt 0:00:00]} 43. Kxf1 {[%emt 0:00:00]} Qc4+ {[%emt 0:00:00]} 44. Ke1 {[%emt 0:00:00]} Qe4+ {[%emt 0:00:00]} 45. Kd2 {[%emt 0:00:00]} Qd4+ {[%emt 0:00:00]} 46. Ke2 {[%emt 0:00:00]} Qe4+ {[%emt 0:00:00] Weighted Error Value: White=0.07 (flawless) /Black=0.05 (flawless)} 1/2-1/2

[Event "44th Chess Olympiad Open 2022"]
[Site "Chennai"]
[Date "2022.08.09"]
[Round "11.20"]
[White "Shengelia, David"]
[Black "Lenaerts, Lennert"]
[Result "1/2-1/2"]
[ECO "A14"]
[WhiteElo "2462"]
[BlackElo "2379"]
[Annotator "RC"]
[PlyCount "178"]
[EventDate "2022.07.29"]
[EventType "team-tourn"]
[EventCountry "IND"]
[SourceTitle "playchess.com"]
[Source "ChessBase"]
[SourceQuality "1"]
[WhiteTeam "Austria"]
[BlackTeam "Belgium"]
[WhiteTeamCountry "AUT"]
[BlackTeamCountry "BEL"]
[TimeControl "40/5400+30:1800+30"]

1. Nf3 {[%emt 0:00:04]} d5 {[%emt 0:00:06]} 2. g3 {[%emt 0:00:08]} Nf6 {[%emt 0:00:16]} 3. Bg2 {[%emt 0:00:08]} e6 {[%emt 0:00:42]} 4. O-O {[%emt 0:01:19]} Be7 {[%emt 0:00:25]} 5. b3 {[%emt 0:03:40]} O-O {[%emt 0:03:28]} 6. c4 {[%emt 0:01:18]} b6 {[%emt 0:00:31]} 7. cxd5 {[%emt 0:08:52]} Nxd5 {[%emt 0:02:26]} 8. Bb2 {[%emt 0:02:47]} Bb7 {[%emt 0:00:33]} 9. d4 {[%emt 0:00:22]} c5 {[%emt 0:01:06]} 10. dxc5 {[%emt 0:03:41]} Bxc5 {[%emt 0:00:11]} 11. Nbd2 {[%emt 0:01:53]} Nd7 {[%emt 0:02:04]} 12. a3 {[%emt 0:05:17]} a5 {[%emt 0:02:07]} 13. e4 {[%emt 0:11:59]} N5f6 {[%emt 0:02:20]} 14. e5 {[%emt 0:00:19]} Ne4 {[%emt 0:20:22]} 15. Nxe4 {[%emt 0:05:41]} Bxe4 {[%emt 0:01:52]} 16. Qe2 {[%emt 0:01:01]} Bd5 {[%emt 0:02:48]} 17. Nd2 {[%emt 0:00:12]} Bxg2 {[%emt 0:02:34]} 18. Kxg2 {[%emt 0:00:05]} Be7 {[%emt 0:00:18]} 19. Rfd1 {[%emt 0:05:48]} Qc7 {[%emt 0:01:44]} 20. Rac1 {[%emt 0:01:27]} Qb7+ {[%emt 0:04:16]} 21. Qf3 {[%emt 0:12:13]} Rab8 {[%emt 0:00:38]} 22. Nc4 {[%emt 0:14:30]} Nc5 {[%emt 0:04:19]} 23. Qxb7 {[%emt 0:00:36]} Rxb7 {[%emt 0:00:08]} 24. Nd6 {[%emt 0:00:39]} Rd7 {[%emt 0:15:34]} 25. b4 {[%emt 0:00:55]} Na4 {[%emt 0:00:40]} 26. Ba1 {[%emt 0:09:55]} axb4 {[%emt 0:00:41]} 27. Nc8 {[%emt 0:01:23]} Rb7 {[%emt 0:00:20]} 28. Nxe7+ {[%emt 0:00:04]} Rxe7 {[%emt 0:00:03]} 29. axb4 {[%emt 0:00:06]} b5 {[%emt 0:01:45]} 30. Rd6 {[%emt 0:00:11]} Rb7 {[%emt 0:02:53]} 31. Bd4 {[%emt 0:00:56]} Rfb8 {[%emt 0:08:51]} 32. Rcc6 {[%emt 0:01:21]} Kf8 {[%emt 0:00:33]} 33. g4 {[%emt 0:03:56]} Ke8 {[%emt 0:03:02]} 34. f4 {[%emt 0:01:04]} Rd8 {[%emt 0:02:29]} 35. Kf3 {[%emt 0:01:46]} Rbd7 {[%emt 0:02:30]} 36. Ke4 {[%emt 0:00:48]} Ke7 {[%emt 0:03:24]} 37. Rxd7+ {[%emt 0:01:49]} Kxd7 {[%emt 0:00:02]} 38. Rd6+ {[%emt 0:00:40]} Ke7 {[%emt 0:00:25]} 39. Ra6 {[%emt 0:00:10]} Rc8 {[%emt 0:05:09]} 40. Ra7+ {[%emt 0:00:07]} Ke8 {[%emt 0:01:14]} 41. Kd3 {[%emt 0:11:09]} Rc1 {[%emt 0:01:44]} 42. Rb7 {[%emt 0:02:55]} Rd1+ {[%emt 0:02:54]} 43. Ke3 {[%emt 0:00:09]} Re1+ {[%emt 0:00:14]} 44. Kd2 {[%emt 0:00:33]} Re4 {[%emt 0:00:25]} 45. Kd3 {[%emt 0:00:17]} Rxf4 {[%emt 0:00:29]} 46. Rxb5 {[%emt 0:00:23]} Rf3+ {[%emt 0:00:25]} 47. Kd2 {[%emt 0:03:46]} Rh3 {[%emt 0:01:59]} 48. Ra5 {[%emt 0:02:12]} Rxh2+ {[%emt 0:00:12]} 49. Kc1 {[%emt 0:01:04]} Rh1+ {[%emt 0:04:49]} 50. Kc2 {[%emt 0:00:15]} Rh2+ {[%emt 0:00:02]} 51. Kb3 {[%emt 0:03:10]} Rd2 {[%emt 0:00:07]} 52. Bg1 {[%emt 0:04:26]} Nb2 {[%emt 0:05:20]} 53. Ra2 {[%emt 0:02:46]} Rd1 {[%emt 0:00:12]} 54. Bc5 {[%emt 0:00:19]} Nd3 {[%emt 0:00:06]} 55. Ra8+ {[%emt 0:02:28]} Kd7 {[%emt 0:00:02]} 56. Kc2 {[%emt 0:00:47]} Nxc5 {[%emt 0:00:02]} 57. Kxd1 {[%emt 0:00:10]} Nd3 {[%emt 0:00:02]} 58. Ra7+ {[%emt 0:00:20]} Kc6 {[%emt 0:00:02]} 59. Rxf7 {[%emt 0:00:15]} g5 {[%emt 0:00:26]} 60. Kd2 {[%emt 0:03:21]} Nxb4 {[%emt 0:05:38]} 61. Kc3 {[%emt 0:00:15]} Kc5 {[%emt 0:01:18]} 62. Rxh7 {[%emt 0:00:24]} Nc6 {[%emt 0:00:19]} 63. Rg7 {[%emt 0:00:27]} Kd5 {[%emt 0:00:57]} 64. Rxg5 {[%emt 0:00:27]} Nxe5 {[%emt 0:00:40]} 65. Rg8 {[%emt 0:00:43]} Ke4 {[%emt 0:00:05]} 66. g5 {[%emt 0:00:19]} Kf5 {[%emt 0:00:14]} 67. Re8 {[%emt 0:00:29]} Kxg5 {[%emt 0:00:27]} 68. Rxe6 {[%emt 0:00:03]} Kf5 {[%emt 0:00:08]} 69. Re8 {[%emt 0:00:09]} Ke4 {[%emt 0:00:08]} 70. Re7 {[%emt 0:00:14]} Kd5 {[%emt 0:00:04]} 71. Ra7 {[%emt 0:00:07]} Ke4 {[%emt 0:00:05]} 72. Ra1 {[%emt 0:00:03]} Kd5 {[%emt 0:00:04]} 73. Rd1+ {[%emt 0:00:05]} Ke4 {[%emt 0:00:04]} 74. Re1+ {[%emt 0:00:01]} Kd5 {[%emt 0:00:05]} 75. Re2 {[%emt 0:00:05]} Nc6 {[%emt 0:00:05]} 76. Rd2+ {[%emt 0:00:08]} Ke4 {[%emt 0:00:05]} 77. Re2+ {[%emt 0:00:19]} Kd5 {[%emt 0:00:05]} 78. Kd3 {[%emt 0:00:08]} Ne5+ {[%emt 0:00:04]} 79. Ke3 {[%emt 0:00:02]} Nc4+ {[%emt 0:00:05]} 80. Kf4 {[%emt 0:00:05]} Nd6 {[%emt 0:00:03]} 81. Rd2+ {[%emt 0:00:02]} Ke6 {[%emt 0:00:05]} 82. Rd1 {[%emt 0:00:05]} Nf7 {[%emt 0:00:13]} 83. Re1+ {[%emt 0:00:17]} Kd5 {[%emt 0:00:02]} 84. Rd1+ {[%emt 0:00:31]} Ke6 {[%emt 0:00:05]} 85. Ke4 {[%emt 0:00:05]} Nd6+ {[%emt 0:00:14]} 86. Kd4 {[%emt 0:00:02]} Nf5+ {[%emt 0:00:04]} 87. Kc5 {[%emt 0:00:03]} Ke5 {[%emt 0:00:13]} 88. Rd5+ {[%emt 0:00:05]} Ke4 {[%emt 0:00:05]} 89. Rxf5 {[%emt 0:00:02]} Kxf5 {[%emt 0:01:09]} 1/2-1/2

[Event "44th Chess Olympiad Open 2022"]
[Site "Chennai"]
[Date "2022.08.09"]
[Round "11.20"]
[White "Hovhannisyan, Mher"]
[Black "Horvath, Dominik"]
[Result "0-1"]
[ECO "D48"]
[WhiteElo "2420"]
[BlackElo "2488"]
[Annotator "RC"]
[PlyCount "116"]
[EventDate "2022.07.29"]
[EventType "team-tourn"]
[EventCountry "IND"]
[SourceTitle "playchess.com"]
[Source "ChessBase"]
[SourceQuality "1"]
[WhiteTeam "Belgium"]
[BlackTeam "Austria"]
[WhiteTeamCountry "BEL"]
[BlackTeamCountry "AUT"]
[TimeControl "40/5400+30:1800+30"]

1. Nf3 {[%emt 0:00:12]} d5 {[%emt 0:00:09]} 2. e3 {[%emt 0:00:25]} Nf6 {[%emt 0:00:05]} 3. c4 {[%emt 0:01:15]} e6 {[%emt 0:00:05]} 4. b3 {[%emt 0:04:04]} Be7 {[%emt 0:00:05]} 5. Bb2 {[%emt 0:00:57]} O-O {[%emt 0:00:08]} 6. Nc3 {[%emt 0:01:58]} dxc4 {[%emt 0:00:21]} 7. Bxc4 {[%emt 0:07:17]} a6 {[%emt 0:00:04]} 8. d4 {[%emt 0:05:54]} b5 {[%emt 0:00:05]} 9. Bd3 {[%emt 0:02:18]} Bb7 {[%emt 0:00:58]} 10. Rc1 {[%emt 0:04:21]} Nbd7 {[%emt 0:04:09]} 11. O-O {[%emt 0:06:56]} c5 {[%emt 0:04:18]} 12. Qe2 {[%emt 0:07:01]} cxd4 {[%emt 0:09:29]} 13. exd4 {[%emt 0:12:08]} Qa5 {[%emt 0:21:34]} 14. a4 {[%emt 0:20:12]} bxa4 {[%emt 0:06:36]} 15. Nxa4 {[%emt 0:00:06]} Rfc8 {[%emt 0:07:23]} 16. Rxc8+ {[%emt 0:01:59]} Rxc8 {[%emt 0:00:05]} 17. Ra1 {[%emt 0:00:16]} Qd5 {[%emt 0:03:51]} 18. Bc4 {[%emt 0:02:08]} Qf5 {[%emt 0:06:20]} 19. Ne5 {[%emt 0:04:31]} Nxe5 {[%emt 0:01:54]} 20. Qxe5 {[%emt 0:01:19]} Qc2 {[%emt 0:04:46]} 21. Rc1 {[%emt 0:07:33]} Qd2 {[%emt 0:00:04]} 22. Qe3 {[%emt 0:02:10]} Qxe3 {[%emt 0:13:49]} 23. fxe3 {[%emt 0:00:01]} Nd5 {[%emt 0:03:56]} 24. Kf2 {[%emt 0:01:50]} Nf6 {[%emt 0:01:00]} 25. Kg1 {[%emt 0:02:11]} Ng4 {[%emt 0:00:34]} 26. Re1 {[%emt 0:00:27]} Bd6 {[%emt 0:00:27]} 27. h3 {[%emt 0:01:20]} Nf6 {[%emt 0:00:13]} 28. Nc3 {[%emt 0:01:04]} a5 {[%emt 0:02:39]} 29. Ra1 {[%emt 0:00:27]} Bb4 {[%emt 0:01:26]} 30. Na2 {[%emt 0:00:19]} Bd2 {[%emt 0:01:16]} 31. Bc1 {[%emt 0:00:48]} Ne4 {[%emt 0:00:46]} 32. Bxd2 {[%emt 0:01:27]} Nxd2 {[%emt 0:00:03]} 33. Nc3 {[%emt 0:01:25]} Nxb3 {[%emt 0:01:25]} 34. Rb1 {[%emt 0:00:29]} Rxc4 {[%emt 0:00:55]} 35. Rxb3 {[%emt 0:00:02]} Rb4 {[%emt 0:00:05]} 36. Ra3 {[%emt 0:01:01]} Rb2 {[%emt 0:00:12]} 37. Rxa5 {[%emt 0:00:30]} Rxg2+ {[%emt 0:00:25]} 38. Kf1 {[%emt 0:00:03]} h6 {[%emt 0:02:30]} 39. d5 {[%emt 0:00:45]} Rc2 {[%emt 0:00:29]} 40. Ra7 {[%emt 0:00:45]} Rxc3 {[%emt 0:00:34]} 41. Rxb7 {[%emt 0:30:03]} exd5 {[%emt 0:30:22]} 42. Ke2 {[%emt 0:00:27]} Rc4 {[%emt 0:00:20]} 43. Rd7 {[%emt 0:00:25]} Rh4 {[%emt 0:00:04]} 44. Rxd5 {[%emt 0:00:00]} Rxh3 {[%emt 0:00:00]} 45. Kf2 {[%emt 0:00:00]} g5 {[%emt 0:00:00]} 46. e4 {[%emt 0:00:00]} Kg7 {[%emt 0:00:00]} 47. Re5 {[%emt 0:00:00]} Kg6 {[%emt 0:00:00]} 48. Ra5 {[%emt 0:00:00]} g4 {[%emt 0:00:00]} 49. Rb5 {[%emt 0:00:00]} Rf3+ {[%emt 0:00:00]} 50. Kg2 {[%emt 0:00:00]} Re3 {[%emt 0:00:00]} 51. Re5 {[%emt 0:00:00]} h5 {[%emt 0:00:00]} 52. Kf2 {[%emt 0:00:00]} Rf3+ {[%emt 0:00:00]} 53. Kg2 {[%emt 0:00:00]} h4 {[%emt 0:00:38]} 54. Re8 {[%emt 0:00:00]} Kg5 {[%emt 0:00:00]} 55. e5 {[%emt 0:00:00]} h3+ {[%emt 0:00:00]} 56. Kh2 {[%emt 0:00:00]} Rf2+ {[%emt 0:00:00]} 57. Kg1 {[%emt 0:00:00]} h2+ {[%emt 0:00:00]} 58. Kh1 {[%emt 0:00:00]} g3 {[%emt 0:00:00]} 0-1

[Event "44th Chess Olympiad Open 2022"]
[Site "Chennai"]
[Date "2022.08.09"]
[Round "11.20"]
[White "Maerevoet, Sim"]
[Black "Blohberger, Felix"]
[Result "1/2-1/2"]
[ECO "C58"]
[WhiteElo "2409"]
[BlackElo "2492"]
[Annotator "RC"]
[PlyCount "58"]
[EventDate "2022.07.29"]
[EventType "team-tourn"]
[EventCountry "IND"]
[SourceTitle "playchess.com"]
[Source "ChessBase"]
[SourceQuality "1"]
[WhiteTeam "Belgium"]
[BlackTeam "Austria"]
[WhiteTeamCountry "BEL"]
[BlackTeamCountry "AUT"]
[TimeControl "40/5400+30:1800+30"]

1. e4 {[%emt 0:00:03]} e5 {[%emt 0:00:06]} 2. Nf3 {[%emt 0:00:05]} Nc6 {[%emt 0:00:06]} 3. Bc4 {[%emt 0:00:22]} Nf6 {[%emt 0:00:21]} 4. Ng5 {[%emt 0:00:14]} d5 {[%emt 0:00:00]} 5. exd5 {[%emt 0:00:04]} Na5 {[%emt 0:00:00]} 6. Bb5+ {[%emt 0:00:08]} c6 {[%emt 0:00:00]} 7. dxc6 {[%emt 0:00:06]} bxc6 {[%emt 0:00:05]} 8. Qf3 {[%emt 0:00:08]} h6 {[%emt 0:00:05]} 9. Ne4 {[%emt 0:00:23]} cxb5 {[%emt 0:00:05]} 10. Nxf6+ {[%emt 0:00:06]} gxf6 {[%emt 0:00:04]} 11. Qxa8 {[%emt 0:00:07]} Qd7 {[%emt 0:00:10]} 12. b4 {[%emt 0:00:23]} Nc6 {[%emt 0:00:19]} 13. a4 {[%emt 0:00:06]} Nd4 {[%emt 0:05:58]} 14. Na3 {[%emt 0:03:35]} Bxb4 {[%emt 0:04:22]} 15. c3 {[%emt 0:02:34]} Nb3 {[%emt 0:16:50]} 16. cxb4 {[%emt 0:02:12]} Nxa1 {[%emt 0:00:28]} 17. Qf3 {[%emt 0:06:03]} Rg8 {[%emt 0:25:42]} 18. Qc3 {[%emt 0:08:41]} Bb7 {[%emt 0:12:03]} 19. Qxa1 {[%emt 0:14:09]} Bxg2 {[%emt 0:02:20]} 20. Rg1 {[%emt 0:00:27]} Qh3 {[%emt 0:00:15]} 21. Qc3 {[%emt 0:10:46]} Qxh2 {[%emt 0:00:07]} 22. Rxg2 {[%emt 0:03:57]} Qxg2 {[%emt 0:07:40]} 23. Nxb5 {[%emt 0:05:59]} Qe4+ {[%emt 0:01:58]} 24. Kf1 {[%emt 0:00:07]} Qh1+ {[%emt 0:00:13]} 25. Ke2 {[%emt 0:00:06]} Qe4+ {[%emt 0:08:17]} 26. Kf1 {[%emt 0:00:43]} Qh1+ {[%emt 0:00:06]} 27. Ke2 {[%emt 0:00:05]} Qe4+ {[%emt 0:00:03]} 28. Kf1 {[%emt 0:00:16]} Qh1+ {[%emt 0:00:06]} 29. Ke2 {[%emt 0:00:05]} Qe4+ {[%emt 0:00:03]} 1/2-1/2

[Event "44th Chess Olympiad Open 2022"]
[Site "Chennai"]
[Date "2022.08.09"]
[Round "11.21"]
[White "Hammer, Jon Ludvig"]
[Black "Gomez, John Paul"]
[Result "1/2-1/2"]
[ECO "C73"]
[WhiteElo "2638"]
[BlackElo "2451"]
[Annotator "TA"]
[PlyCount "69"]
[EventDate "2022.07.29"]
[EventType "team-tourn"]
[EventCountry "IND"]
[SourceTitle "playchess.com"]
[Source "ChessBase"]
[SourceQuality "1"]
[WhiteTeam "Norway"]
[BlackTeam "Philippines"]
[WhiteTeamCountry "NOR"]
[BlackTeamCountry "PHI"]
[TimeControl "40/5400+30:1800+30"]

{[%evp 15,69,23,20,8,19,0,0,-1,0,0,17,24,25,43,37,0,0,0,0,0,0,0,3,0,30,28,37,38,28,28,28,28,43,29,47,23,41,17,51,-8,-7,-8,-11,-11,-8,-8,-9,-13,-6,-19,-19,-20,-21,-21,-21,-14]} 1. e4 {[%emt 0:00:02]} e5 {[%emt 0:00:10]} 2. Nf3 {[%emt 0:00:04]} Nc6 {[%emt 0:00:07]} 3. Bb5 {[%emt 0:00:03]} Nf6 {[%emt 0:00:11]} 4. d3 {[%emt 0:00:06]} d6 {[%emt 0:01:45]} 5. O-O {[%emt 0:02:39]} a6 {[%emt 0:00:44]} 6. Bxc6+ {[%emt 0:00:34]} bxc6 {[%emt 0:00:09][%cal Bb7c6,Bc6c5][%mdl 32]} 7. d4 {[%emt 0:10:00]} exd4 {[%emt 0:00:15]} 8. Qxd4 {[%emt 0:03:31]} Be7 {[%emt 0:02:34]} 9. e5 {[%emt 0:13:53] C73: Ruy Lopez: Deferred Steinitz: 5 Bxc6+.} c5 $1 {[%emt 0:01:36]} 10. Qd3 {[%emt 0:00:05]} dxe5 {[%emt 0:05:01]} 11. Qxd8+ {[%emt 0:00:06]} Bxd8 {[%emt 0:00:10]} 12. Nxe5 {[%emt 0:00:07]} O-O {[%emt 0:01:46]} 13. Nc6 {[%emt 0:00:47]} Nd5 {[%emt 0:02:44][%cal Bf6d5,Bd5b4,Bb4c2][%mdl 32]} 14. Nxd8 {[%emt 0:03:14]} Rxd8 {[%emt 0:00:10] [#]} 15. Na3 $146 {[%emt 0:02:35]} (15. c4 $5 {[%cal Rc4d5]} Nb4 16. Nc3 $11) ({Predecessor:} 15. c4 Nb4 16. Na3 Nd3 17. b3 Bg4 18. f3 Bf5 19. Nc2 c6 20. Bg5 f6 21. Bh4 {0-1 (32) Polzin,R (2410)-Slobodjan,R (2500) Germany 1996}) 15... Bf5 {[%emt 0:02:08]} 16. c4 {[%emt 0:06:17]} Nb4 {[%emt 0:00:40]} 17. Be3 {[%emt 0:00:16]} a5 {[%emt 0:12:21][%cal Ba6a5,Ba5a4][%mdl 32]} 18. b3 {[%emt 0:05:00]} a4 {[%emt 0:02:58][%cal Ob4a2]} 19. Bxc5 {[%emt 0:00:40]} Nc2 {[%emt 0:00:23]} 20. Nxc2 {[%emt 0:00:09]} Bxc2 {[%emt 0:00:07]} 21. b4 {[%emt 0:00:50]} Rd3 {[%emt 0:02:49]} 22. Be3 {[%emt 0:05:57]} Rc3 {[%emt 0:06:21]} 23. c5 {[%emt 0:00:17]} c6 {[%emt 0:00:30]} 24. Rac1 {[%emt 0:01:57][%cal Of2f3]} Rc4 {[%emt 0:01:37]} 25. Rfe1 {[%emt 0:11:52]} Rd8 {[%emt 0:07:21]} 26. h3 {[%emt 0:17:04]} Bd3 {[%emt 0:03:03]} 27. Rcd1 {[%emt 0:02:43]} (27. a3 $1 $14) 27... Rxb4 $11 {[%emt 0:02:13] The position is equal.} 28. Bd2 {[%emt 0:00:18]} Re4 {[%emt 0:01:10]} 29. Ba5 {[%emt 0:01:08]} Rxe1+ {[%emt 0:00:13]} 30. Rxe1 {[%emt 0:00:07] KRB-KRB} Rb8 {[%emt 0:00:27]} 31. Bb6 {[%emt 0:02:24]} Kf8 {[%emt 0:03:37]} 32. Bc7 {[%emt 0:00:06]} Rb1 {[%emt 0:00:22]} 33. Bd6+ {[%emt 0:00:03]} Kg8 {[%emt 0:00:07]} 34. Rxb1 {[%emt 0:00:03]} Bxb1 {[%emt 0:00:07]} 35. a3 {[%emt 0:00:02] Weighted Error Value: White=0.10 (very precise) /Black=0.06 (flawless)} 1/2-1/2

[Event "44th Chess Olympiad Open 2022"]
[Site "Chennai"]
[Date "2022.08.09"]
[Round "11.21"]
[White "Urkedal, Frode Olav Olsen"]
[Black "Bersamina, Paulo"]
[Result "0-1"]
[ECO "D89"]
[WhiteElo "2555"]
[BlackElo "2429"]
[Annotator "RC"]
[PlyCount "74"]
[EventDate "2022.07.29"]
[EventType "team-tourn"]
[EventCountry "IND"]
[SourceTitle "playchess.com"]
[Source "ChessBase"]
[SourceQuality "1"]
[WhiteTeam "Norway"]
[BlackTeam "Philippines"]
[WhiteTeamCountry "NOR"]
[BlackTeamCountry "PHI"]
[TimeControl "40/5400+30:1800+30"]

1. d4 {[%emt 0:00:04]} Nf6 {[%emt 0:00:07]} 2. c4 {[%emt 0:00:06]} g6 {[%emt 0:00:05]} 3. Nc3 {[%emt 0:00:05]} d5 {[%emt 0:00:04]} 4. cxd5 {[%emt 0:00:55]} Nxd5 {[%emt 0:00:07]} 5. e4 {[%emt 0:00:22]} Nxc3 {[%emt 0:00:06]} 6. bxc3 {[%emt 0:00:05]} Bg7 {[%emt 0:00:04]} 7. Bc4 {[%emt 0:01:00]} c5 {[%emt 0:03:43]} 8. Ne2 {[%emt 0:00:05]} O-O {[%emt 0:00:22]} 9. O-O {[%emt 0:00:17]} Nc6 {[%emt 0:00:28]} 10. Be3 {[%emt 0:00:09]} Bg4 {[%emt 0:01:35]} 11. f3 {[%emt 0:00:40]} Na5 {[%emt 0:00:06]} 12. Bd3 {[%emt 0:02:25]} cxd4 {[%emt 0:00:57]} 13. cxd4 {[%emt 0:00:07]} Be6 {[%emt 0:00:12]} 14. d5 {[%emt 0:21:19]} Bxa1 {[%emt 0:05:05]} 15. Qxa1 {[%emt 0:02:48]} f6 {[%emt 0:00:08]} 16. Kh1 {[%emt 0:08:28]} Bf7 {[%emt 0:15:04]} 17. Bh6 {[%emt 0:03:54]} Nc6 {[%emt 0:21:40]} 18. Bxf8 {[%emt 0:06:06]} Kxf8 {[%emt 0:00:55]} 19. f4 {[%emt 0:03:24]} Nb4 {[%emt 0:01:35]} 20. Bb1 {[%emt 0:02:52]} Rc8 {[%emt 0:02:13]} 21. a3 {[%emt 0:06:01]} Nc2 {[%emt 0:10:09]} 22. Qb2 {[%emt 0:03:35]} Ne3 {[%emt 0:01:07]} 23. Rc1 {[%emt 0:06:17]} Rxc1+ {[%emt 0:03:10]} 24. Qxc1 {[%emt 0:00:07]} Qb6 {[%emt 0:00:21]} 25. Ba2 {[%emt 0:01:27]} Kg7 {[%emt 0:10:44]} 26. h3 {[%emt 0:00:52]} a5 {[%emt 0:00:55]} 27. Kh2 {[%emt 0:02:49]} Be8 {[%emt 0:04:24]} 28. Ng3 {[%emt 0:05:42]} Qd4 {[%emt 0:05:30]} 29. d6 {[%emt 0:10:56]} h5 {[%emt 0:01:11]} 30. Bb1 {[%emt 0:10:02]} exd6 {[%emt 0:01:39]} 31. Qc7+ {[%emt 0:00:34]} Kf8 {[%emt 0:02:39]} 32. Qc1 {[%emt 0:02:13]} Bc6 {[%emt 0:01:49]} 33. f5 {[%emt 0:00:34]} h4 {[%emt 0:02:36]} 34. Ne2 {[%emt 0:00:20]} Qd2 {[%emt 0:02:15]} 35. Qc3 {[%emt 0:00:24]} Qxc3 {[%emt 0:00:50]} 36. Nxc3 {[%emt 0:00:06]} gxf5 {[%emt 0:00:04]} 37. exf5 {[%emt 0:00:06]} Bxg2 {[%emt 0:00:27]} 0-1